bitfinex/quotes_ETHUSD_20251217
["timestamp","ask_amount","ask_price","bid_price","bid_amount"]
[1765958007946,0.002,2951.2,2951.1,6.01434226]
[1765958008175,0.002,2951.2,2951.1,5.868306]
[1765958008375,0.002,2951.2,2951.1,6.404306]
[1765958008886,0.002,2951.2,2951.1,5.224506]
[1765958009092,0.002,2951.2,2951.1,5.760506]
[1765958009451,0.8203,2951.2,2951.1,0.537]
[1765958009754,4.95939576,2951.2,2951.1,0.001]
[1765958014909,0.8203,2951.2,2951.1,0.001]
[1765958016322,0.4757,2951.2,2951.1,0.001]
[1765958016670,0.8203,2951.2,2951.1,0.001]
[1765958018845,0.4757,2951.2,2951.1,0.001]
[1765958019125,0.002,2951.2,2951.1,0.4561]
[1765958019705,0.002,2951.2,2951.1,1.1279]
[1765958020701,0.002,2951.2,2951.1,4.51646697]
[1765958022129,0.002,2951.2,2951.1,5.35464728]
[1765958023723,0.002,2951.2,2951.1,5.36492442]
[1765958025427,0.002,2951.2,2951.1,5.35464728]
[1765958025826,0.002,2951.2,2951.1,4.68284728]
[1765958026017,0.002,2951.2,2951.1,5.21884728]
[1765958029346,0.3261,2951.2,2951.1,3.92556697]
[1765958030450,0.002,2951.2,2951.1,3.92556697]
[1765958030644,0.002,2951.2,2951.1,4.38066697]
[1765958032024,0.002,2951.2,2951.1,4.86766697]
[1765958032951,0.002,2951.2,2951.1,4.38066697]
[1765958033253,0.8188,2951.2,2951.1,0.001]
[1765958037234,1.23950709,2951.2,2951.1,0.001]
[1765958040642,0.002,2951.2,2951.1,0.4561]
[1765958040842,0.002,2951.2,2951.1,0.9431]
[1765958041041,0.002,2951.2,2951.1,0.4561]
[1765958041650,0.3278,2951.2,2951.1,0.4561]
[1765958041837,0.3278,2951.2,2951.1,0.001]
[1765958042248,0.002,2951.2,2951.1,0.4561]
[1765958042452,0.3294,2951.2,2951.1,0.4561]
[1765958042651,0.3294,2951.2,2951.1,0.001]
[1765958044169,0.002,2951.2,2951.1,3.84466697]
[1765958044468,0.002,2951.2,2951.1,4.32076697]
[1765958044670,0.002,2951.2,2951.1,3.84466697]
[1765958045268,0.002,2951.2,2951.1,4.50906697]
[1765958046673,0.002,2951.2,2951.1,0.4561]
[1765958046840,0.002,2951.2,2951.1,0.9322]
[1765958047269,0.002,2951.2,2951.1,0.4561]
[1765958047468,0.002,2951.2,2951.1,3.84466697]
[1765958047669,0.002,2951.2,2951.1,0.4561]
[1765958048063,0.3404,2951.2,2951.1,0.001]
[1765958048671,0.002,2951.2,2951.1,0.4599]
[1765958049887,0.002,2951.2,2951.1,1.1243]
[1765958050668,0.002,2951.2,2951.1,4.51286697]
[1765958050866,0.002,2951.2,2951.1,3.84846697]
[1765958051181,0.002,2951.2,2951.1,4.51286697]
[1765958051369,0.002,2951.2,2951.1,5.35682125]
[1765958068294,0.002,2951.2,2951.1,5.89282125]
[1765958071900,0.002,2951.2,2951.1,5.35682125]
[1765958072071,0.4553,2951.2,2951.1,0.537]
[1765958072598,0.4553,2951.2,2951.1,0.001]
[1765958072964,0.8201,2951.2,2951.1,0.001]
[1765958091115,0.002,2951.2,2951.1,0.4807]
[1765958092333,0.002,2951.2,2951.1,0.6712]
[1765958092630,0.002,2951.2,2951.1,1.1534]
[1765958092928,0.4819,2951.2,2951.1,0.001]
[1765958093126,0.4819,2951.2,2951.1,0.537]
[1765958093419,0.4819,2951.2,2951.1,0.001]
[1765958093588,0.8203,2951.2,2951.1,0.001]
[1765958093785,1.31629696,2951.2,2951.1,0.001]
[1765958094391,0.8203,2951.2,2951.1,0.001]
[1765958096326,0.4819,2951.2,2951.1,0.001]
[1765958096557,0.002,2951.2,2951.1,0.001]
[1765958096890,0.3527,2951.2,2951.1,0.001]
[1765958100144,0.8191,2951.2,2951.1,0.001]
[1765958100350,0.3527,2951.2,2951.1,0.001]
[1765958100530,0.002,2951.2,2951.1,0.4807]
[1765958100842,0.002,2951.2,2951.1,4.96912468]
[1765958106956,0.002,2951.2,2951.1,10.07577059]
[1765958107117,0.002,2951.2,2951.1,10.04188493]
[1765958107448,0.002,2951.2,2951.1,5.90100491]
[1765958112659,0.002,2951.2,2951.1,4.95442468]
[1765958112826,0.002,2951.2,2951.1,4.40526697]
[1765958113022,0.3626,2951.2,2951.1,3.92556697]
[1765958113328,0.8192,2951.2,2951.1,0.001]
[1765958114037,4.96008002,2951.2,2951.1,0.001]
[1765958114235,8.84454017,2951.2,2951.1,0.001]
[1765958114522,1.315208,2951.2,2951.1,0.001]
[1765958114728,4.70366015,2951.2,2951.1,0.001]
[1765958120158,1.315208,2951.2,2951.1,0.001]
[1765958122754,4.70366015,2951.2,2951.1,0.001]
[1765958123395,8.84572977,2951.2,2951.1,0.001]
[1765958124214,11.91727762,2951.2,2951.1,0.001]
[1765958124797,6.8226,2951.2,2951.1,0.001]
[1765958125302,6.8226,2951.2,2951.1,0.4953]
[1765958125600,6.462,2951.2,2951.1,0.4953]
[1765958127067,6.8235,2951.2,2951.1,0.001]
[1765958127267,6.462,2951.2,2951.1,0.4953]
[1765958129109,6.462,2951.2,2951.1,3.88386697]
[1765958129267,6.462,2951.2,2951.1,4.34436697]
[1765958129592,6.462,2951.2,2951.1,3.88386697]
[1765958129986,0.002,2951.2,2951.1,3.88386697]
[1765958130895,0.002,2951.2,2951.1,0.4953]
[1765958131104,0.3626,2951.2,2951.1,0.001]
[1765958132193,0.002,2951.2,2951.1,0.9558]
[1765958132589,0.002,2951.2,2951.1,0.4953]
[1765958133609,0.002,2951.6,2951.5,0.4943]
[1765958133902,0.002,2951.6,2951.5,6.09724985]
[1765958134067,0.002,2951.6,2951.5,6.13113092]
[1765958134268,0.002,2951.6,2951.5,1.49468023]
[1765958134499,0.002,2951.6,2951.5,1.4898]
[1765958135365,0.002,2951.6,2951.5,1.68619]
[1765958135975,0.002,2951.6,2951.5,5.07429774]
[1765958136670,0.002,2951.6,2951.5,5.55869774]
[1765958137997,0.002,2951.6,2951.5,5.07429774]
[1765958138192,0.002,2951.6,2951.5,4.87790774]
[1765958139701,0.002,2951.6,2951.5,5.36230774]
[1765958145213,0.002,2951.6,2951.5,9.96875759]
[1765958145795,0.002,2951.6,2951.5,5.82668797]
[1765958147903,0.002,2951.6,2951.5,9.96875759]
[1765958148109,0.002,2951.6,2951.5,11.64327859]
[1765958148705,0.002,2951.6,2951.5,7.50120897]
[1765958149805,0.002,2951.6,2951.5,7.03682874]
[1765958149977,0.002,2951.6,2951.5,7.03582874]
[1765958150898,0.002,2951.6,2951.5,11.17789836]
[1765958151211,0.002,2951.6,2951.5,6.01642874]
[1765958151410,0.002,2951.6,2951.5,6.55142874]
[1765958151915,0.364,2951.6,2951.5,3.84760774]
[1765958152115,0.4627,2951.5,2951.4,3.38820087]
[1765958152884,0.364,2951.6,2951.5,3.38810774]
[1765958153089,0.002,2951.6,2951.5,3.84910774]
[1765958153913,0.364,2951.6,2951.5,3.38810774]
[1765958154129,0.002,2951.6,2951.5,3.84910774]
[1765958155023,0.002,2951.6,2951.5,5.26100693]
[1765958156690,0.002,2951.6,2951.5,5.71910693]
[1765958160726,0.002,2951.6,2951.5,9.86117655]
[1765958160925,0.002,2951.6,2951.5,9.40307655]
[1765958161825,0.002,2951.6,2951.5,5.26100693]
[1765958162127,0.002,2951.6,2951.5,9.40307655]
[1765958162296,0.002,2951.6,2951.5,9.86745678]
[1765958163795,0.002,2951.6,2951.5,4.77660693]
[1765958164109,0.002,2951.6,2951.5,4.86850774]
[1765958166218,0.3402,2951.6,2951.5,3.92310774]
[1765958167024,0.3402,2951.6,2951.5,3.38810774]
[1765958167328,0.8209,2951.6,2951.5,3.92310774]
[1765958167627,0.002,2951.6,2951.5,4.38450774]
[1765958168930,0.002,2951.6,2951.5,4.87310774]
[1765958170627,0.002,2951.6,2951.5,4.38450774]
[1765958171131,0.002,2951.6,2951.5,4.87310774]
[1765958171324,0.002,2951.6,2951.5,5.69924035]
[1765958182024,0.002,2951.6,2951.5,9.83781174]
[1765958183211,0.002,2951.6,2951.5,5.69924035]
[1765958196624,0.002,2951.6,2951.5,5.16424035]
[1765958196824,0.002,2951.6,2951.5,4.87310774]
[1765958197446,0.002,2951.6,2951.5,9.0110685]
[1765958205267,0.002,2951.6,2951.5,4.87310774]
[1765958221067,0.002,2951.6,2951.5,5.89124241]
[1765958221590,0.002,2951.6,2951.5,4.86764241]
[1765958221882,0.002,2951.6,2951.5,3.92310774]
[1765958222085,0.002,2951.6,2951.5,4.42220774]
[1765958222250,0.002,2951.6,2951.5,4.92080774]
[1765958223675,0.002,2951.6,2951.5,9.0587685]
[1765958225786,0.002,2951.6,2951.5,3.92310774]
[1765958226456,0.002,2951.6,2951.5,4.40260774]
[1765958226782,0.002,2951.6,2951.5,4.90230774]
[1765958230357,0.002,2951.6,2951.5,5.83318211]
[1765958230881,0.002,2951.6,2951.5,9.97114287]
[1765958231064,0.002,2951.6,2951.5,5.83318211]
[1765958231482,0.002,2951.6,2951.5,5.29818211]
[1765958231659,0.002,2951.6,2951.5,5.83318211]
[1765958232169,0.002,2951.6,2951.5,5.33348211]
[1765958232559,0.002,2951.6,2951.5,3.86760774]
[1765958232882,0.3337,2951.6,2951.5,3.38810774]
[1765958233179,0.8208,2951.6,2951.5,3.92310774]
[1765958233391,0.3337,2951.6,2951.5,3.92310774]
[1765958236191,0.002,2951.6,2951.5,4.40260774]
[1765958236386,0.3353,2951.6,2951.5,3.92310774]
[1765958240096,0.8204,2951.5,2951.4,3.92317115]
[1765958241189,0.4856,2951.5,2951.4,3.92317115]
[1765958241766,0.002,2951.6,2951.5,0.4795]
[1765958242494,0.002,2951.6,2951.5,0.9792]
[1765958242991,0.002,2951.6,2951.5,0.4795]
[1765958243499,0.002,2951.6,2951.5,3.86760774]
[1765958245399,0.002,2951.6,2951.5,4.36730774]
[1765958246102,0.002,2951.6,2951.5,3.86760774]
[1765958246395,0.002,2951.6,2951.5,4.36730774]
[1765958248706,0.002,2951.6,2951.5,3.86760774]
[1765958249003,0.3337,2951.6,2951.5,3.38810774]
[1765958250205,0.002,2951.6,2951.5,3.86760774]
[1765958250907,0.3337,2951.6,2951.5,3.38810774]
[1765958253505,0.002,2951.6,2951.5,3.38810774]
[1765958254007,0.002,2951.6,2951.5,3.86760774]
[1765958257117,0.002,2951.6,2951.5,4.34570774]
[1765958258313,0.002,2951.6,2951.5,4.40260774]
[1765958261314,0.3422,2951.6,2951.5,3.92310774]
[1765958261685,0.3422,2951.6,2951.5,0.535]
[1765958262209,0.8209,2951.6,2951.5,0.535]
[1765958262515,0.4801,2951.5,2951.3,3.38831557]
[1765958262713,0.8203,2951.5,2951.4,3.92322253]
[1765958263229,0.817,2951.2,2951.1,3.38953331]
[1765958263381,0.3369,2951.2,2951.1,3.92453331]
[1765958263905,0.4801,2951.4,2951.1,7.31310028]
[1765958264490,0.3402,2951.2,2951.1,3.92453331]
[1765958266416,0.8189,2951.2,2951.1,3.92453331]
[1765958267314,0.3402,2951.2,2951.1,3.92453331]
[1765958267720,0.4787,2951.4,2951.1,7.81200028]
[1765958268519,0.4821,2951.6,2951.1,8.29010028]
[1765958268686,0.4821,2951.6,2951.2,0.4781]
[1765958268891,0.3402,2951.4,2951.3,3.38833734]
[1765958270794,0.8189,2951.4,2951.3,3.38833734]
[1765958271033,0.8189,2951.4,2951.2,3.38844775]
[1765958271333,0.0048,2951.3,2951.2,3.38844775]
[1765958272097,0.4787,2951.4,2951.2,6.7768999]
[1765958272296,0.4801,2951.5,2951.2,6.7768999]
[1765958275630,0.002,2951.6,2951.2,10.91523615]
[1765958275828,0.002,2951.5,2951.4,0.4989]
[1765958277334,0.3422,2951.5,2951.2,12.89542211]
[1765958277856,0.002,2951.5,2951.4,3.88712253]
[1765958278559,0.002,2951.5,2951.4,5.22652015]
[1765958278761,0.002,2951.5,2951.4,5.70462015]
[1765958279068,0.002,2951.5,2951.4,5.22652015]
[1765958281194,0.002,2951.5,2951.4,9.8429564]
[1765958282179,0.002,2951.5,2951.4,10.3230564]
[1765958286078,0.002,2951.5,2951.4,5.70662015]
[1765958287555,0.002,2951.5,2951.4,6.15682015]
[1765958288282,0.002,2951.5,2951.4,5.20772015]
[1765958288503,0.8212,2951.5,2951.4,5.20772015]
[1765958288701,0.8212,2951.5,2951.4,5.74272015]
[1765958289063,0.8212,2951.5,2951.4,4.40332253]
[1765958289861,0.3663,2951.5,2951.4,4.40332253]
[1765958290062,0.002,2951.5,2951.4,9.47735878]
[1765958292361,0.002,2951.5,2951.4,13.61569503]
[1765958294962,0.002,2951.5,2951.4,14.08007526]
[1765958295167,0.002,2951.5,2951.4,15.82691594]
[1765958296095,0.002,2951.5,2951.4,15.83719308]
[1765958298202,0.002,2951.5,2951.4,16.24269708]
[1765958298799,0.002,2951.5,2951.4,29.2096423]
[1765958299680,0.00791347,2952.1,2952.0,0.9357]
[1765958299887,0.00791347,2952.1,2952.0,9.7473725]
[1765958300198,0.00791347,2952.1,2952.0,11.18648998]
[1765958300404,0.00791347,2952.1,2952.0,11.32221225]
[1765958301790,0.00791347,2952.1,2952.0,14.70974612]
[1765958304008,0.00791347,2952.1,2952.0,14.71424572]
[1765958307407,0.00791347,2952.1,2952.0,10.57885227]
[1765958308608,0.00791347,2952.1,2952.0,10.04385227]
[1765958308780,0.00791347,2952.1,2952.0,10.57885227]
[1765958309719,0.00791347,2952.1,2952.0,10.04385227]
[1765958309876,0.00791347,2952.1,2952.0,10.56857513]
[1765958310079,0.00991347,2952.1,2952.0,10.56857513]
[1765958310911,0.00991347,2952.1,2952.0,10.03357513]
[1765958311189,0.00991347,2952.1,2952.0,10.56857513]
[1765958312790,0.00991347,2952.1,2952.0,10.57885227]
[1765958313290,0.00991347,2952.1,2952.0,14.71435378]
[1765958313808,0.00991347,2952.1,2952.0,10.57885227]
[1765958321298,0.00991347,2952.1,2952.0,10.03357513]
[1765958321498,0.00991347,2952.1,2952.0,10.56857513]
[1765958322096,0.00991347,2952.1,2952.0,5.89807362]
[1765958322337,0.00991347,2952.1,2952.0,5.45833637]
[1765958325430,0.50251347,2952.1,2952.0,4.47313637]
[1765958325642,0.50251347,2952.1,2952.0,3.98763637]
[1765958325928,0.50251347,2952.1,2952.0,4.05825614]
[1765958326124,0.00991347,2952.1,2952.0,4.51945614]
[1765958328236,0.50091347,2952.1,2952.0,4.05825614]
[1765958328419,0.50091347,2952.1,2952.0,3.52325614]
[1765958328623,0.84251347,2952.1,2952.0,0.13572227]
[1765958328811,0.84251347,2952.1,2952.0,3.92253387]
[1765958329832,0.5012,2952.0,2951.9,3.92261784]
[1765958332839,0.8293,2951.9,2951.8,0.84251347]
[1765958333038,0.8327,2951.8,2951.7,3.38778277]
[1765958333339,0.8327,2951.8,2951.7,3.92278277]
[1765958334217,0.3349,2951.8,2951.7,3.92278277]
[1765958334633,0.00991347,2952.1,2951.9,7.23649726]
[1765958335023,0.00991347,2952.1,2951.9,3.84884863]
[1765958335413,0.00991347,2952.1,2952.0,0.4612]
[1765958335744,0.00991347,2952.1,2952.0,0.9503]
[1765958336041,0.00991347,2952.1,2952.0,0.4612]
[1765958337846,0.00991347,2952.1,2952.0,3.84873387]
[1765958341347,0.34481347,2952.1,2952.0,3.38753387]
[1765958341550,0.4926,2951.9,2951.8,3.88748535]
[1765958341856,0.00991347,2952.1,2951.7,3.38784316]
[1765958342016,0.00991347,2952.1,2951.8,0.535]
[1765958342220,0.8327,2951.9,2951.8,0.535]
[1765958344256,0.8327,2951.9,2951.8,3.92276339]
[1765958344618,0.4926,2951.9,2951.8,3.92276339]
[1765958345046,0.35001347,2952.1,2951.8,7.31052678]
[1765958345446,0.00991347,2952.1,2951.8,7.31052678]
[1765958346320,0.00991347,2952.1,2951.8,7.79482678]
[1765958348780,0.00991347,2952.1,2952.0,0.4892]
[1765958349176,0.00991347,2952.1,2952.0,3.87673387]
[1765958349387,0.35551347,2952.1,2952.0,3.87673387]
[1765958349750,0.00991347,2952.1,2952.0,3.87673387]
[1765958349952,0.35551347,2952.1,2952.0,3.38753387]
[1765958350147,0.00991347,2952.1,2951.9,3.38756452]
[1765958350347,0.4677,2952.0,2951.9,3.38756452]
[1765958352380,0.342,2951.7,2951.6,3.38796977]
[1765958352676,0.342,2951.7,2951.6,4.26196675]
[1765958352978,0.342,2951.7,2951.6,4.74896675]
[1765958353185,0.487,2951.9,2951.6,8.1369597]
[1765958353565,0.487,2951.9,2951.6,7.6499597]
[1765958353761,0.3456,2951.7,2951.6,4.26196675]
[1765958354351,0.3456,2951.7,2951.6,4.21396675]
[1765958354587,0.8311,2951.7,2951.6,3.87496977]
[1765958354788,0.8311,2951.7,2951.6,4.40996977]
[1765958355087,0.3456,2951.7,2951.6,4.40996977]
[1765958355291,0.4855,2951.9,2951.6,8.28716272]
[1765958355788,0.4855,2951.9,2951.6,7.80016272]
[1765958355989,0.4855,2951.9,2951.6,8.81830085]
[1765958356283,0.4855,2951.9,2951.6,8.73062281]
[1765958356493,0.487,2952.0,2951.7,0.4855]
[1765958357257,0.002,2951.9,2951.7,0.4855]
[1765958357673,0.3476,2951.9,2951.8,0.535]
[1765958358371,0.3476,2951.9,2951.8,3.92276339]
[1765958359204,0.002,2951.9,2951.8,3.92276339]
[1765958359562,0.349,2951.9,2951.8,3.92276339]
[1765958359766,0.8332,2951.9,2951.8,3.92276339]
[1765958365192,0.349,2951.9,2951.8,3.92276339]
[1765958365778,0.8332,2951.9,2951.8,0.535]
[1765958366200,0.4918,2951.8,2951.7,3.38782728]
[1765958366492,0.4918,2951.8,2951.7,3.92282728]
[1765958366691,0.0048,2951.8,2951.7,3.92282728]
[1765958367270,0.002,2951.9,2951.8,0.4892]
[1765958367596,0.8331,2951.9,2951.7,11.44812866]
[1765958367797,0.0049,2951.8,2951.7,3.92282728]
[1765958368397,0.002,2951.9,2951.7,7.79990545]
[1765958369280,0.002,2951.9,2951.7,9.09185966]
[1765958371504,0.002,2951.9,2951.8,5.11092321]
[1765958372371,0.002,2951.9,2951.8,5.24666851]
[1765958374445,0.002,2951.9,2951.8,8.14976087]
[1765958374582,0.3476,2951.9,2951.8,8.14976087]
[1765958374776,0.3476,2951.9,2951.8,9.53365974]
[1765958374971,0.002,2951.9,2951.8,9.53365974]
[1765958375176,0.002,2951.9,2951.8,10.00805974]
[1765958376809,0.002,2951.9,2951.8,9.53365974]
[1765958377013,0.002,2951.9,2951.8,9.04445974]
[1765958377375,0.002,2951.9,2951.8,9.53365974]
[1765958378008,0.3406,2951.9,2951.8,7.66056087]
[1765958378229,0.3406,2951.9,2951.8,8.05981557]
[1765958380126,0.002,2951.9,2951.8,8.05981557]
[1765958380734,0.3406,2951.9,2951.8,8.05981557]
[1765958381109,0.002,2951.9,2951.8,8.52471557]
[1765958382523,0.002,2951.9,2951.8,8.98681557]
[1765958382698,0.002,2951.9,2951.8,10.27467583]
[1765958383814,0.002,2951.9,2951.8,10.41042159]
[1765958390040,0.002,2951.9,2951.8,10.87480182]
[1765958390811,0.002,2951.9,2951.8,9.94832159]
[1765958391005,0.002,2951.9,2951.8,9.12256133]
[1765958391428,0.3784,2951.9,2951.8,4.05850915]
[1765958391627,0.002,2951.9,2951.8,4.05850915]
[1765958391818,0.002,2951.9,2951.8,8.66046133]
[1765958392222,0.002,2951.9,2951.8,9.12256133]
[1765958393030,0.002,2951.9,2951.8,8.66046133]
[1765958394252,0.8335,2951.9,2951.8,3.92276339]
[1765958395435,0.3792,2951.9,2951.8,3.92276339]
[1765958396646,0.002,2951.9,2951.8,3.92276339]
[1765958397454,0.3784,2951.9,2951.8,3.92276339]
[1765958398869,0.002,2951.9,2951.8,8.98681557]
[1765958399627,0.002,2951.9,2951.8,4.38766339]
[1765958399963,0.3784,2951.9,2951.8,3.92276339]
[1765958400521,0.002,2951.9,2951.8,3.92276339]
[1765958400863,0.002,2951.9,2951.8,4.38766339]
[1765958401364,0.4559,2951.8,2951.7,0.3784]
[1765958401573,0.4559,2951.8,2951.5,0.001]
[1765958401865,0.8315,2951.6,2951.5,0.536]
[1765958402157,0.8315,2951.6,2951.5,0.001]
[1765958402719,4.96855218,2951.6,2951.5,0.001]
[1765958403050,8.85340035,2951.6,2951.5,0.001]
[1765958403426,4.71634817,2951.6,2951.5,0.001]
[1765958404666,1.32835522,2951.6,2951.5,0.001]
[1765958405234,0.8315,2951.6,2951.5,0.001]
[1765958405429,4.21949295,2951.6,2951.5,0.001]
[1765958406747,0.4726,2951.5,2951.4,0.001]
[1765958406942,4.22050774,2951.5,2951.4,0.001]
[1765958409352,0.8324,2951.5,2951.4,0.001]
[1765958409985,1.25442994,2951.5,2951.4,0.001]
[1765958410388,4.64253768,2951.5,2951.4,0.001]
[1765958413353,1.25442994,2951.5,2951.4,0.001]
[1765958413877,1.25332994,2951.5,2951.4,0.001]
[1765958416485,4.64143768,2951.5,2951.4,0.001]
[1765958417385,1.25332994,2951.5,2951.4,0.001]
[1765958419999,4.64143768,2951.5,2951.4,0.001]
[1765958420188,8.77848986,2951.5,2951.4,0.001]
[1765958420785,4.64143768,2951.5,2951.4,0.001]
[1765958421169,4.64143768,2951.5,2951.1,0.001]
[1765958421170,0.4773,2951.2,2951.1,0.001]
[1765958427017,0.0047,2951.2,2951.1,0.001]
[1765958427383,0.4773,2951.2,2951.1,0.001]
[1765958427583,5.00091449,2951.2,2951.1,0.001]
[1765958427794,4.61435218,2951.2,2951.1,0.001]
[1765958428101,8.40830833,2951.2,2951.1,0.001]
[1765958428792,4.27125615,2951.2,2951.1,0.001]
[1765958430679,4.73563638,2951.2,2951.1,0.001]
[1765958431104,5.56161608,2951.2,2951.1,0.001]
[1765958432512,5.56161608,2951.2,2950.4,0.001]
[1765958432513,1.0187,2950.5,2950.4,0.001]
[1765958434014,4.40795605,2950.5,2950.4,0.001]
[1765958434218,1.0187,2950.5,2950.4,0.001]
[1765958435512,4.40795605,2950.5,2950.4,0.001]
[1765958435715,5.18765522,2950.5,2950.4,0.001]
[1765958436216,1.79839917,2950.5,2950.4,0.001]
[1765958438018,1.0187,2950.5,2950.4,0.001]
[1765958438217,1.424204,2950.5,2950.4,0.001]
[1765958438430,1.230604,2950.4,2950.3,0.001]
[1765958440194,4.61997493,2950.4,2950.3,0.001]
[1765958444734,1.230604,2950.4,2950.3,0.001]
[1765958445032,2.82600782,2950.4,2950.3,0.001]
[1765958445936,6.21537875,2950.4,2950.3,0.001]
[1765958446442,6.67975898,2950.4,2950.3,0.001]
[1765958447429,0.883304,2950.3,2950.2,0.001]
[1765958447732,0.8249,2950.1,2949.9,0.001]
[1765958447903,1.36824139,2950.1,2949.9,0.001]
[1765958449206,5.22233722,2950.1,2949.9,0.001]
[1765958451423,1.36824139,2950.1,2949.9,0.001]
[1765958451935,0.8249,2950.1,2949.9,0.001]
[1765958453606,0.3471,2950.1,2949.9,0.001]
[1765958453809,0.8236,2950.1,2949.9,0.001]
[1765958456337,0.3471,2950.1,2949.9,0.001]
[1765958456717,1.229104,2950.1,2949.9,0.001]
[1765958457248,1.69096953,2950.1,2949.9,0.001]
[1765958458814,5.08068513,2950.1,2949.9,0.001]
[1765958459328,1.69096953,2950.1,2949.9,0.001]
[1765958459847,0.752604,2950.1,2949.9,0.001]
[1765958460046,1.229104,2950.1,2949.9,0.001]
[1765958461148,4.6188196,2950.1,2949.9,0.001]
[1765958462264,0.883304,2950.0,2949.9,0.001]
[1765958462472,1.69478423,2950.0,2949.9,0.001]
[1765958462634,2.719441,2950.0,2949.9,0.001]
[1765958463249,2.85531218,2950.0,2949.9,0.001]
[1765958463531,6.24514268,2950.0,2949.9,0.001]
[1765958463732,2.719441,2950.0,2949.9,0.001]
[1765958463933,2.25506077,2950.0,2949.9,0.001]
[1765958464757,6.1092715,2950.0,2949.9,0.001]
[1765958468939,6.10469872,2950.0,2949.9,0.001]
[1765958471149,10.24883243,2950.0,2949.9,0.001]
[1765958471556,16.70883243,2950.0,2949.9,0.001]
[1765958471750,16.84470361,2950.0,2949.9,0.001]
[1765958472245,12.7005699,2950.0,2949.9,0.001]
[1765958473155,1.79988423,2949.9,2949.8,0.001]
[1765958473467,10.63327678,2949.9,2949.8,0.001]
[1765958473771,10.7691618,2949.9,2949.8,0.001]
[1765958474435,14.15910722,2949.9,2949.8,0.001]
[1765958482075,10.63327678,2949.9,2949.8,0.001]
[1765958482380,11.64982965,2949.9,2949.8,0.001]
[1765958486484,11.65182965,2949.9,2949.8,0.001]
[1765958487377,0.4828,2949.7,2949.2,0.001]
[1765958487576,1.335104,2949.3,2949.2,0.001]
[1765958488694,7.9639377,2949.9,2949.3,0.471]
[1765958488897,0.4828,2949.8,2949.2,0.001]
[1765958489193,0.4472,2949.3,2949.2,0.001]
[1765958489400,0.9296,2949.3,2949.2,0.001]
[1765958489558,1.335104,2949.3,2949.2,0.001]
[1765958499207,3.39033756,2949.6,2949.2,0.001]
[1765958499208,0.458,2949.6,2949.2,0.4512]
[1765958499393,0.405504,2949.7,2949.2,6.06973968]
[1765958499706,0.458,2949.6,2949.2,1.92442179]
[1765958499906,0.458,2949.6,2949.2,1.46322179]
[1765958500907,0.458,2949.6,2949.2,4.85391138]
[1765958501606,0.4717,2949.3,2949.2,1.46322179]
[1765958501813,0.4717,2949.3,2949.2,4.40377182]
[1765958502121,0.458,2949.5,2949.2,4.85397182]
[1765958502474,0.407504,2949.8,2949.7,0.4502]
[1765958502678,0.4753,2949.8,2949.6,0.535]
[1765958502904,0.4753,2949.8,2949.6,3.92525848]
[1765958503107,0.002,2949.8,2949.6,3.92525848]
[1765958503285,0.4733,2949.7,2949.6,3.92525848]
[1765958504078,0.4733,2949.7,2949.6,5.07136424]
[1765958504278,0.002,2949.8,2949.7,0.4502]
[1765958505108,0.002,2949.8,2949.7,3.84037527]
[1765958510013,0.002,2949.8,2949.7,0.4502]
[1765958510313,0.002,2949.8,2949.6,3.92527006]
[1765958510314,0.4737,2949.8,2949.6,3.92527006]
[1765958511308,0.4737,2949.8,2949.7,3.39017527]
[1765958511503,0.002,2949.8,2949.7,3.84037527]
[1765958511808,0.002,2949.8,2949.7,5.54000312]
[1765958512415,0.002,2949.8,2949.7,5.675842]
[1765958512617,0.002,2949.8,2949.7,5.70974375]
[1765958512784,0.002,2949.8,2949.7,5.675842]
[1765958513185,0.002,2949.8,2949.7,9.81831771]
[1765958513490,0.002,2949.8,2949.7,5.749642]
[1765958513889,0.002,2949.8,2949.7,6.210842]
[1765958515194,0.9333,2949.8,2949.7,4.06101415]
[1765958515734,0.9333,2949.8,2949.7,3.52601415]
[1765958515890,0.4753,2949.8,2949.7,4.06101415]
[1765958517219,0.4753,2949.8,2949.7,0.13583888]
[1765958517394,0.0054,2949.7,2949.6,3.39026364]
[1765958517594,0.0054,2949.7,2949.6,3.92526364]
[1765958518522,0.4634,2949.7,2949.6,3.92526364]
[1765958519518,0.4634,2949.7,2949.6,3.39026364]
[1765958519820,0.4634,2949.7,2949.6,0.535]
[1765958520037,0.4686,2949.6,2949.5,0.4753]
[1765958520193,0.9266,2949.6,2949.4,3.39049669]
[1765958520387,0.4686,2949.6,2949.5,0.535]
[1765958520631,0.4686,2949.6,2949.5,3.39040515]
[1765958520813,0.9266,2949.6,2949.5,3.92540515]
[1765958521132,0.9266,2949.6,2949.5,0.535]
[1765958522498,0.0101,2949.5,2949.4,3.39047775]
[1765958522715,0.0101,2949.5,2949.4,3.92547775]
[1765958523111,0.4733,2949.6,2949.5,3.39040515]
[1765958523605,0.405504,2949.7,2949.5,3.39040515]
[1765958524317,0.405504,2949.7,2949.5,3.92540515]
[1765958525027,0.405504,2949.7,2949.3,0.4957]
[1765958525326,0.4535,2949.6,2949.5,0.535]
[1765958525503,0.0207,2949.5,2949.4,3.39050796]
[1765958525823,0.4832,2949.5,2949.4,3.92550796]
[1765958526021,0.4492,2949.4,2949.2,3.39175003]
[1765958526220,0.4492,2949.4,2949.3,0.535]
[1765958527631,0.4625,2949.5,2949.3,0.535]
[1765958527829,0.4625,2949.6,2949.3,0.535]